fUSD/lending_fUSD_20250226
["ID","MTS","AMOUNT","RATE_DAILY","PERIOD"]
[354611786,1740595906305,-639.34,0.00037534,14]
[354611788,1740595906314,-1572.85,0.00037534,14]
[354611790,1740595906323,-500.0,0.00037534,14]
[354611792,1740595906333,-3421.4,0.00037534,14]
[354611794,1740595906342,-1778.87,0.00037534,14]
[354611796,1740595906351,-1616.96,0.00037534,14]
[354611798,1740595906361,-696.16,0.00037534,14]
[354611799,1740595906371,-9182.73,0.00037534,14]
[354611801,1740595906380,-682.72,0.00037534,14]
[354611803,1740595906389,-683.41,0.00037534,14]
[354611805,1740595906398,-6709.93,0.00037534,14]
[354611807,1740595906407,-500.0,0.00037534,14]
[354611809,1740595906416,-4316.65,0.00037534,14]
[354611811,1740595906425,-682.23,0.00037534,14]
[354611813,1740595906434,-546.58,0.00037534,14]
[354611815,1740595906443,-3317.95,0.00037534,14]
[354611817,1740595906452,-1576.59,0.00037534,14]
[354611819,1740595906461,-604.02,0.00037534,14]
[354611821,1740595906470,-500.0,0.00037534,14]
[354611823,1740595906479,-876.15,0.00037534,14]
[354611825,1740595906488,-1898.38,0.00037534,14]
[354611827,1740595906497,-3418.9,0.00037534,14]
[354611829,1740595906507,-749.16,0.00037534,14]
[354611831,1740595906517,-500.0,0.00037534,14]
[354611833,1740595906526,-2938.03,0.00037534,14]
[354611835,1740595906535,-1228.02,0.00037534,14]
[354611837,1740595906546,-2258.95,0.00037534,14]
[354611839,1740595906555,-1052.77,0.00037534,14]
[354611840,1740595906564,-500.0,0.00037534,14]
[354611842,1740595906574,-932.43,0.00037534,14]
[354611844,1740595906583,-1087.18,0.00037534,14]
[354611846,1740595906592,-500.0,0.00037534,14]
[354611848,1740595906601,-3770.5,0.00037534,14]
[354611851,1740595906612,-4443.37,0.00037534,14]
[354611852,1740595906622,-841.55,0.00037534,14]
[354611854,1740595906631,-4370.98,0.00037534,14]
[354611857,1740595906640,-1077.8,0.00037534,14]
[354611859,1740595906649,-1662.55,0.00037534,14]
[354611860,1740595906658,-1684.75,0.00037534,14]
[354611862,1740595906667,-732.3,0.00037534,14]
[354611864,1740595906676,-669.42,0.00037534,14]
[354611866,1740595906686,-2153.43,0.00037534,14]
[354611868,1740595906695,-2455.03,0.00037534,14]
[354611870,1740595906704,-500.0,0.00037534,14]
[354611872,1740595906714,-555.94,0.00037534,14]
[354611874,1740595906723,-8707.22,0.00037534,14]
[354611876,1740595906733,-661.77,0.00037534,14]
[354611878,1740595906742,-1962.86,0.00037534,14]
[354611880,1740595906752,-1465.58,0.00037534,14]
[354611882,1740595906761,-14121.36,0.00037534,14]
[354611884,1740595906771,-500.0,0.00037534,14]
[354611886,1740595906780,-3029.66,0.00037534,14]
[354611888,1740595906789,-3158.55,0.00037534,14]
[354611890,1740595906798,-1124.82,0.00037534,14]
[354611892,1740595906808,-677.06,0.00037534,14]
[354611894,1740595906818,-1234.59,0.00037534,14]
[354611896,1740595906828,-1087.29,0.00037534,14]
[354611898,1740595906838,-1184.83,0.00037534,14]
[354611900,1740595906848,-766.23,0.00037534,14]
[354611902,1740595906859,-527.05,0.00037534,14]
[354611904,1740595906868,-500.0,0.00037534,14]
[354611906,1740595906878,-1001.3,0.00037534,14]
[354611908,1740595906887,-617.69,0.00037534,14]
[354611910,1740595906896,-1731.67,0.00037534,14]
[354611912,1740595906906,-3138.97,0.00037534,14]
[354611914,1740595906915,-1244.63,0.00037534,14]
[354611916,1740595906924,-850.11,0.00037534,14]
[354611918,1740595906933,-2099.68,0.00037534,14]
[354611920,1740595906943,-1394.32,0.00037534,14]
[354611922,1740595906956,-3802.94,0.00037534,14]
[354611924,1740595906966,-1086.92,0.00037534,14]
[354611926,1740595906975,-1256.63,0.00037534,14]
[354611928,1740595906985,-1776.24,0.00037534,14]
[354611930,1740595906995,-772.03,0.00037534,14]
[354611932,1740595907005,-500.0,0.00037534,14]
[354611934,1740595907015,-773.62,0.00037534,14]
[354611936,1740595907025,-500.0,0.00037534,14]
[354611938,1740595907035,-666.36,0.00037534,14]
[354611940,1740595907045,-500.0,0.00037534,14]
[354611942,1740595907054,-1317.17,0.00037534,14]
[354611944,1740595907064,-500.0,0.00037534,14]
[354611946,1740595907074,-2961.3,0.00037534,14]
[354611948,1740595907083,-1507.85,0.00037534,14]
[354611950,1740595907093,-4383.06,0.00037534,14]
[354611952,1740595907102,-1264.32,0.00037534,14]
[354611954,1740595907114,-1388.89,0.00037534,14]
[354611956,1740595907124,-556.93,0.00037534,14]
[354611958,1740595907134,-3155.81,0.00037534,14]
[354611960,1740595907144,-561.98,0.00037534,14]
[354611962,1740595907153,-2270.77,0.00037534,14]
[354611964,1740595907163,-593.99,0.00037534,14]
[354611966,1740595907173,-4158.75781872,0.0003759,2]
[354611969,1740595907183,-183.23504703,0.00037639,10]
[354611971,1740595907193,-214.26,0.00037641,2]
[354611973,1740595907203,-212.08673115,0.000377,7]
[354611975,1740595907213,-349.83440685,0.00037708,106]
[354611977,1740595907222,-500.0,0.00037729,120]
[354611979,1740595907232,-500.0,0.0003776,120]
[354611981,1740595907241,-166.56350729,0.000378,2]
[354611983,1740595907251,-750.0,0.000378,2]
[354611985,1740595907261,-965.0,0.000378,2]
[354611987,1740595907270,-2142.0,0.00037808,14]
[354611989,1740595907280,-1232.0,0.00037808,14]
[354611991,1740595907290,-151.0,0.00037808,7]
[354611993,1740595907299,-151.0,0.00037808,7]
[354611995,1740595907309,-157.23897,0.00037808,14]
[354611996,1740595907319,-672.636069,0.00037808,14]
[354611998,1740595907328,-500.0,0.00037808,14]
[354612001,1740595907339,-1501.590989,0.00037808,14]
[354612003,1740595907348,-676.71,0.00037808,14]
[354612005,1740595907360,-500.0,0.00037808,14]
[354612007,1740595907369,-870.39,0.00037808,14]
[354612009,1740595907379,-1090.2,0.00037808,14]
[354612011,1740595907389,-1069.27,0.00037808,14]
[354612013,1740595907399,-814.89,0.00037808,14]
[354612015,1740595907408,-500.0,0.00037808,14]
[354612017,1740595907418,-500.0,0.00037808,14]
[354612019,1740595907427,-1150.39,0.00037808,14]
[354612021,1740595907437,-500.0,0.00037808,14]
[354612023,1740595907447,-500.0,0.00037808,14]
[354612025,1740595907456,-500.0,0.00037808,14]
[354612027,1740595907466,-701.36,0.00037808,14]
[354612029,1740595907476,-841.82,0.00037808,14]
[354612031,1740595907486,-500.0,0.00037808,14]
[354612033,1740595907496,-670.19,0.00037808,14]
[354612035,1740595907506,-461.66768484,0.00037808,14]
[354612037,1740595907516,-300.0,0.00037808,14]
[354612039,1740595907526,-196.25138,0.00037808,7]
[354612041,1740595907536,-1844.05,0.00037808,14]
[354612043,1740595907546,-500.0,0.00037808,14]
[354612045,1740595907556,-747.92,0.00037808,14]
[354612047,1740595907565,-835.83,0.00037808,14]
[354612049,1740595907575,-738.6,0.00037808,14]
[354612051,1740595907585,-1533.87,0.00037808,14]
[354612054,1740595907595,-1414.25,0.00037808,14]
[354612056,1740595907608,-865.08,0.00037808,14]
[354612058,1740595907618,-633.98,0.00037808,14]
[354612060,1740595907628,-500.0,0.00037808,14]
[354612062,1740595907637,-600.33,0.00037808,14]
[354612064,1740595907648,-500.0,0.00037808,14]
[354612066,1740595907658,-580.36,0.00037808,14]
[354612068,1740595907668,-742.35,0.00037808,14]
[354612070,1740595907678,-732.49,0.00037808,14]
[354612072,1740595907688,-527.1,0.00037808,14]
[354612074,1740595907698,-500.0,0.00037808,14]
[354612076,1740595907707,-935.03,0.00037808,14]
[354612078,1740595907716,-543.41,0.00037808,14]
[354612080,1740595907726,-500.0,0.00037808,14]
[354612082,1740595907736,-500.0,0.00037808,14]
[354612084,1740595907745,-581.31,0.00037808,14]
[354612086,1740595907755,-216.89293916,0.00037808,14]
[354612088,1740595907765,-689.42,0.00037808,14]
[354612090,1740595907775,-689.49,0.00037808,14]
[354612092,1740595907784,-571.34,0.00037808,14]
[354612094,1740595907794,-696.87,0.00037808,14]
[354612096,1740595907804,-1290.39,0.00037808,14]
[354612098,1740595907814,-546.44,0.00037808,14]
[354612100,1740595907823,-500.0,0.00037808,14]
[354612102,1740595907833,-594.86,0.00037808,14]
[354612104,1740595907844,-635.18,0.00037808,14]
[354612106,1740595907854,-500.0,0.00037808,14]
[354612108,1740595907865,-858.4,0.00037808,14]
[354612109,1740595907875,-617.43,0.00037808,14]
[354612110,1740595907884,-665.21,0.00037808,14]
[354612111,1740595907893,-500.0,0.00037808,14]
[354612112,1740595907903,-1850.02,0.00037808,14]
[354612113,1740595907913,-500.0,0.00037808,14]
[354612114,1740595907923,-1161.63,0.00037808,14]
[354612115,1740595907932,-1036.04,0.00037808,14]
[354612116,1740595907942,-2240.29,0.00037808,14]
[354612117,1740595907959,-500.0,0.00037808,14]
[354612118,1740595907968,-608.93,0.00037808,14]
[354612119,1740595907978,-500.0,0.00037808,14]
[354612121,1740595907987,-2310.8,0.00037808,14]
[354612123,1740595908000,-500.0,0.00037808,14]
[354612125,1740595908011,-500.0,0.00037808,14]
[354612127,1740595908021,-500.0,0.00037808,14]
[354612129,1740595908032,-1018.81,0.00037808,14]
[354612131,1740595908043,-871.69,0.00037808,14]
[354612133,1740595908054,-500.0,0.00037808,14]
[354612134,1740595908065,-500.0,0.00037808,14]
[354612137,1740595908076,-1006.27,0.00037808,14]
[354612139,1740595908087,-595.91,0.00037808,14]
[354612141,1740595908098,-1116.49,0.00037808,14]
[354612143,1740595908110,-641.45,0.00037808,14]
[354612145,1740595908121,-500.0,0.00037808,14]
[354612147,1740595908131,-772.83,0.00037808,14]
[354612149,1740595908142,-1308.99,0.00037808,14]
[354612150,1740595908153,-935.7,0.00037808,14]
[354612153,1740595908163,-872.15,0.00037808,14]
[354612154,1740595908174,-500.0,0.00037808,14]
[354612156,1740595908185,-500.0,0.00037808,14]
[354612159,1740595908195,-649.25,0.00037808,14]
[354612161,1740595908206,-500.0,0.00037808,14]
[354612163,1740595908217,-1082.33,0.00037808,14]
[354612165,1740595908227,-513.39,0.00037808,14]
[354612167,1740595908237,-500.0,0.00037808,14]
[354612169,1740595908247,-1176.81,0.00037808,14]
[354612171,1740595908258,-1686.11,0.00037808,14]
[354612173,1740595908269,-500.0,0.00037808,14]
[354612175,1740595908279,-538.09,0.00037808,14]
[354612177,1740595908290,-547.24,0.00037808,14]
[354612179,1740595908300,-395.56976831,0.00037808,14]
[354612181,1740595908311,-500.0,0.00037808,14]
[354612183,1740595908321,-811.61,0.00037808,14]
[354612185,1740595908331,-1804.38,0.00037808,14]
[354612187,1740595908341,-969.08,0.00037808,14]
[354612189,1740595908351,-2234.9,0.00037808,14]
[354612191,1740595908366,-877.13,0.00037808,14]
[354612193,1740595908376,-582.64,0.00037808,14]
[354612195,1740595908387,-500.0,0.00037808,14]
[354612197,1740595908399,-255.12639214,0.00037808,14]
[354612199,1740595908409,-500.0,0.00037808,14]
[354612201,1740595908420,-500.0,0.00037808,14]
[354612203,1740595908430,-500.0,0.00037808,14]
[354612205,1740595908440,-1855.35,0.00037808,14]
[354612207,1740595908450,-1019.59,0.00037808,14]
[354612209,1740595908462,-2120.11,0.00037808,14]
[354612211,1740595908472,-1021.29,0.00037808,14]
[354612213,1740595908483,-1613.94,0.00037808,14]
[354612215,1740595908494,-572.27,0.00037808,14]
[354612217,1740595908504,-1105.78,0.00037808,14]
[354612219,1740595908515,-982.48,0.00037808,14]
[354612221,1740595908526,-500.0,0.00037808,14]
[354612223,1740595908537,-2258.29,0.00037808,14]
[354612225,1740595908547,-500.0,0.00037808,14]
[354612227,1740595908557,-500.0,0.00037808,14]
[354612229,1740595908567,-1496.14,0.00037808,14]
[354612231,1740595908577,-782.62,0.00037808,14]
[354612233,1740595908587,-1313.98,0.00037808,14]
[354612235,1740595908596,-633.15,0.00037808,14]
[354612237,1740595908609,-500.0,0.00037808,14]
[354612239,1740595908620,-1614.67,0.00037808,14]
[354612241,1740595908630,-777.94,0.00037808,14]
[354612243,1740595908640,-251.27525253,0.00037808,14]
[354612245,1740595908651,-1119.74,0.00037808,14]
[354612247,1740595908662,-630.05,0.00037808,14]
[354612249,1740595908672,-639.20714514,0.00037808,14]
[354612251,1740595908682,-500.0,0.00037808,14]
[354612253,1740595908692,-1550.01,0.00037808,14]
[354612255,1740595908703,-898.54,0.00037808,14]
[354612257,1740595908713,-500.0,0.00037808,14]
[354612259,1740595908723,-986.29,0.00037808,14]
[354612261,1740595908733,-666.5,0.00037808,14]
[354612263,1740595908744,-1800.45,0.00037808,14]
[354612265,1740595908754,-1038.19,0.00037808,14]
[354612267,1740595908765,-722.35,0.00037808,14]
[354612269,1740595908775,-777.79,0.00037808,14]
[354612271,1740595908785,-1016.47,0.00037808,14]
[354612273,1740595908795,-583.31,0.00037808,14]
[354612275,1740595908806,-746.65,0.00037808,14]
[354612277,1740595908816,-529.67,0.00037808,14]
[354612280,1740595908827,-500.0,0.00037808,14]
[354612282,1740595908838,-500.0,0.00037808,14]
[354612284,1740595908848,-806.05,0.00037808,14]
[354612286,1740595908858,-886.7,0.00037808,14]
[354612287,1740595908869,-820.28,0.00037808,14]
[354612288,1740595908880,-1501.14,0.00037808,14]
[354612290,1740595908890,-500.0,0.00037808,14]
[354612291,1740595908900,-921.34,0.00037808,14]
[354612293,1740595908911,-500.0,0.00037808,14]
[354612294,1740595908921,-699.59,0.00037808,14]
[354612296,1740595908932,-1003.76,0.00037808,14]
[354612297,1740595908942,-500.0,0.00037808,14]
[354612299,1740595908955,-1495.63,0.00037808,14]
[354612300,1740595908966,-834.44,0.00037808,14]
[354612302,1740595908976,-831.3,0.00037808,14]
[354612303,1740595908987,-675.74,0.00037808,14]
[354612305,1740595909002,-917.03,0.00037808,14]
[354612307,1740595909012,-551.68,0.00037808,14]
[354612308,1740595909023,-681.62,0.00037808,14]
[354612310,1740595909035,-1958.47,0.00037808,14]
[354612311,1740595909046,-1067.6,0.00037808,14]
[354612313,1740595909056,-500.0,0.00037808,14]
[354612314,1740595909067,-636.63,0.00037808,14]
[354612316,1740595909078,-1007.51,0.00037808,14]
[354612318,1740595909088,-500.0,0.00037808,14]
[354612319,1740595909098,-826.67,0.00037808,14]
[354612321,1740595909108,-532.65,0.00037808,14]
[354612322,1740595909119,-1255.98,0.00037808,14]
[354612324,1740595909129,-500.0,0.00037808,14]
[354612325,1740595909140,-1084.65,0.00037808,14]
[354612327,1740595909150,-510.04,0.00037808,14]
[354612329,1740595909160,-1101.48,0.00037808,14]
[354612330,1740595909171,-634.72,0.00037808,14]
[354612332,1740595909182,-842.79,0.00037808,14]
[354612334,1740595909192,-861.46,0.00037808,14]
[354612335,1740595909203,-500.0,0.00037808,14]
[354612337,1740595909213,-765.4,0.00037808,14]
[354612339,1740595909223,-604.9,0.00037808,14]
[354612340,1740595909233,-500.0,0.00037808,14]
[354612342,1740595909243,-1116.67,0.00037808,14]
[354612343,1740595909254,-500.0,0.00037808,14]
[354612345,1740595909263,-1441.7,0.00037808,14]
[354612347,1740595909274,-754.28,0.00037808,14]
[354612348,1740595909284,-929.23,0.00037808,14]
[354612350,1740595909295,-1403.66,0.00037808,14]
[354612352,1740595909305,-718.11,0.00037808,14]
[354612353,1740595909315,-1217.5,0.00037808,14]
[354612355,1740595909326,-1107.15,0.00037808,14]
[354612357,1740595909336,-1834.12,0.00037808,14]
[354612358,1740595909347,-1996.52,0.00037808,14]
[354612360,1740595909359,-902.19,0.00037808,14]
[354612362,1740595909369,-561.55,0.00037808,14]
[354612363,1740595909379,-565.94,0.00037808,14]
[354612365,1740595909390,-500.0,0.00037808,14]
[354612367,1740595909400,-500.0,0.00037808,14]
[354612368,1740595909410,-563.43,0.00037808,14]
[354612387,1740595909686,-1467.19,0.00037808,14]
[354612388,1740595909697,-1321.18,0.00037808,14]
[354612390,1740595909708,-1902.42,0.00037808,14]
[354612392,1740595909718,-500.0,0.00037808,14]
[354612393,1740595909728,-500.0,0.00037808,14]
[354612395,1740595909738,-1140.97,0.00037808,14]
[354612397,1740595909748,-528.46,0.00037808,14]
[354612398,1740595909759,-651.71,0.00037808,14]
[354612400,1740595909769,-1073.87,0.00037808,14]
[354612402,1740595909779,-1235.9,0.00037808,14]
[354612403,1740595909789,-583.0,0.00037808,14]
[354612405,1740595909799,-642.59,0.00037808,14]
[354612407,1740595909809,-500.0,0.00037808,14]
[354612408,1740595909819,-1162.07,0.00037808,14]
[354612410,1740595909829,-1175.03,0.00037808,14]
[354612412,1740595909838,-500.0,0.00037808,14]
[354612413,1740595909848,-1123.12,0.00037808,14]
[354612415,1740595909857,-1360.38,0.00037808,14]
[354612416,1740595909869,-990.04,0.00037808,14]
[354612418,1740595909879,-500.0,0.00037808,14]
[354612419,1740595909898,-500.0,0.00037808,14]
[354612421,1740595909908,-758.81,0.00037808,14]
[354612422,1740595909917,-1858.11,0.00037808,14]
[354612424,1740595909927,-743.78,0.00037808,14]
[354612426,1740595909937,-836.2,0.00037808,14]
[354612427,1740595909948,-552.16,0.00037808,14]
[354612429,1740595909962,-957.01,0.00037808,14]
[354612431,1740595909972,-1949.61,0.00037808,14]
[354612433,1740595909983,-500.0,0.00037808,14]
[354612434,1740595909996,-1008.01,0.00037808,14]
[354612436,1740595910006,-1466.22,0.00037808,14]
[354612438,1740595910016,-1152.19,0.00037808,14]
[354612439,1740595910026,-500.0,0.00037808,14]
[354612441,1740595910036,-2482.2,0.00037808,14]
[354612443,1740595910047,-1828.52,0.00037808,14]
[354612444,1740595910056,-500.0,0.00037808,14]
[354612446,1740595910067,-527.63,0.00037808,14]
[354612448,1740595910077,-873.77,0.00037808,14]
[354612449,1740595910087,-556.5070987,0.00037808,14]
[354612451,1740595910096,-1665.67,0.00037808,14]
[354612453,1740595910106,-500.0,0.00037808,14]
[354612454,1740595910118,-1934.6,0.00037808,14]
[354612456,1740595910128,-786.06,0.00037808,14]
[354612458,1740595910138,-1875.12,0.00037808,14]
[354612460,1740595910148,-1075.72,0.00037808,14]
[354612462,1740595910157,-554.85,0.00037808,14]
[354612464,1740595910167,-956.32,0.00037808,14]
[354612466,1740595910177,-1163.37,0.00037808,14]
[354612468,1740595910188,-500.0,0.00037808,14]
[354612470,1740595910197,-1037.67,0.00037808,14]
[354612472,1740595910208,-2110.11,0.00037808,14]
[354612473,1740595910220,-655.67,0.00037808,14]
[354612474,1740595910230,-328.35359533,0.00037808,14]
[354612475,1740595910241,-519.01,0.00037808,14]
[354612476,1740595910252,-500.0,0.00037808,14]
[354612477,1740595910263,-754.12,0.00037808,14]
[354612478,1740595910273,-1595.01,0.00037808,14]
[354612479,1740595910283,-1351.39,0.00037808,14]
[354612480,1740595910295,-500.0,0.00037808,14]
[354612481,1740595910304,-978.64,0.00037808,14]
[354612482,1740595910314,-883.23,0.00037808,14]
[354612483,1740595910325,-544.48,0.00037808,14]
[354612484,1740595910335,-1282.93,0.00037808,14]
[354612485,1740595910346,-500.0,0.00037808,14]
[354612486,1740595910356,-1979.65,0.00037808,14]
[354612487,1740595910370,-500.0,0.00037808,14]
[354612488,1740595910380,-1465.82,0.00037808,14]
[354612489,1740595910390,-500.0,0.00037808,14]
[354612490,1740595910401,-1395.89,0.00037808,14]
[354612491,1740595910411,-854.86,0.00037808,14]
[354612493,1740595910421,-1505.0,0.00037808,14]
[354612494,1740595910431,-924.09,0.00037808,14]
[354612495,1740595910441,-711.08,0.00037808,14]
[354612496,1740595910450,-552.43,0.00037808,14]
[354612498,1740595910460,-895.76,0.00037808,14]
[354612500,1740595910470,-500.0,0.00037808,14]
[354612502,1740595910480,-500.0,0.00037808,14]
[354612504,1740595910490,-500.0,0.00037808,14]
[354612506,1740595910499,-932.59,0.00037808,14]
[354612508,1740595910509,-1558.86,0.00037808,14]
[354612510,1740595910519,-912.19,0.00037808,14]
[354612512,1740595910528,-551.46,0.00037808,14]
[354612514,1740595910538,-500.0,0.00037808,14]
[354612516,1740595910548,-3271.55,0.00037808,14]
[354612518,1740595910558,-3117.32,0.00037808,14]
[354612520,1740595910568,-500.0,0.00037808,14]
[354612522,1740595910578,-896.05,0.00037808,14]
[354612524,1740595910587,-1469.5,0.00037808,14]
[354612526,1740595910597,-500.0,0.00037808,14]
[354612528,1740595910607,-500.0,0.00037808,14]
[354612530,1740595910619,-500.0,0.00037808,14]
[354612532,1740595910629,-1970.34,0.00037808,14]
[354612534,1740595910640,-1219.67,0.00037808,14]
[354612536,1740595910650,-500.0,0.00037808,14]
[354612538,1740595910660,-500.0,0.00037808,14]
[354612540,1740595910670,-1258.23,0.00037808,14]
[354612542,1740595910679,-802.71,0.00037808,14]
[354612544,1740595910690,-1003.98,0.00037808,14]
[354612546,1740595910700,-1048.22,0.00037808,14]
[354612548,1740595910710,-632.25608088,0.00037808,14]
[354612550,1740595910719,-500.0,0.00037808,14]
[354612552,1740595910729,-500.0,0.00037808,14]
[354612554,1740595910739,-12754.69,0.00037808,14]
[354612556,1740595910748,-760.48,0.00037808,14]
[354612558,1740595910758,-1559.74,0.00037808,14]
[354612560,1740595910767,-1039.17,0.00037808,14]
[354612562,1740595910777,-295.35603797,0.00037808,14]
[354612564,1740595910787,-968.47,0.00037808,14]
[354612566,1740595910797,-975.3,0.00037808,14]
[354612568,1740595910806,-884.61,0.00037808,14]
[354612570,1740595910816,-581.51,0.00037808,14]
[354612572,1740595910826,-677.65,0.00037808,14]
[354612574,1740595910836,-559.35,0.00037808,14]
[354612576,1740595910845,-500.0,0.00037808,14]
[354612578,1740595910855,-595.61027473,0.00037808,14]
[354612580,1740595910867,-1068.0,0.00037808,14]
[354612582,1740595910877,-1472.3,0.00037808,14]
[354612584,1740595910907,-1096.63,0.00037808,14]
[354612586,1740595910917,-882.85,0.00037808,14]
[354612587,1740595910927,-1708.56,0.00037808,14]
[354612589,1740595910937,-505.62,0.00037808,14]
[354612591,1740595910948,-500.0,0.00037808,14]
[354612593,1740595910959,-966.9,0.00037808,14]
[354612595,1740595910969,-1141.53,0.00037808,7]
[354612597,1740595910980,-1382.5,0.00037808,14]
[354612599,1740595910990,-811.04,0.00037808,14]
[354612601,1740595911005,-691.77,0.00037808,14]
[354612603,1740595911015,-669.94,0.00037808,14]
[354612605,1740595911025,-530.0,0.00037808,14]
[354612607,1740595911035,-1910.93,0.00037808,14]
[354612609,1740595911046,-500.0,0.00037808,14]
[354612612,1740595911056,-500.0,0.00037808,14]
[354612614,1740595911066,-874.49,0.00037808,14]
[354612616,1740595911076,-776.22,0.00037808,14]
[354612618,1740595911086,-2493.41,0.00037808,14]
[354612620,1740595911096,-811.0,0.00037808,14]
[354612622,1740595911106,-2143.28,0.00037808,14]
[354612624,1740595911119,-2617.36,0.00037808,14]
[354612626,1740595911129,-1621.78,0.00037808,14]
[354612628,1740595911139,-500.0,0.00037808,14]
[354612630,1740595911149,-500.0,0.00037808,14]
[354612632,1740595911158,-2319.53,0.00037808,14]
[354612634,1740595911168,-500.0,0.00037808,14]
[354612636,1740595911177,-500.0,0.00037808,14]
[354612638,1740595911187,-529.04,0.00037808,14]
[354612640,1740595911197,-1163.2,0.00037808,14]
[354612642,1740595911206,-768.45,0.00037808,14]
[354612644,1740595911216,-500.0,0.00037808,14]
[354612646,1740595911231,-500.0,0.00037808,14]
[354612648,1740595911242,-500.0,0.00037808,14]
[354612650,1740595911251,-500.0,0.00037808,14]
[354612652,1740595911261,-911.1,0.00037808,14]
[354612654,1740595911270,-1280.98,0.00037808,14]
[354612656,1740595911280,-2143.46,0.00037808,14]
[354612658,1740595911291,-500.0,0.00037808,14]
[354612660,1740595911300,-1855.75,0.00037808,14]
[354612662,1740595911310,-873.58,0.00037808,14]
[354612664,1740595911320,-939.46,0.00037808,14]
[354612666,1740595911330,-500.0,0.00037808,14]
[354612668,1740595911339,-500.0,0.00037808,14]
[354612670,1740595911349,-1902.32,0.00037808,14]
[354612672,1740595911359,-500.0,0.00037808,14]
[354612674,1740595911371,-1142.01,0.00037808,14]
[354612676,1740595911380,-938.37,0.00037808,14]
[354612678,1740595911390,-800.79,0.00037808,14]
[354612680,1740595911400,-512.47,0.00037808,14]
[354612682,1740595911410,-2507.28,0.00037808,2]
[354612684,1740595911419,-1981.71,0.00037808,14]
[354612686,1740595911429,-731.9,0.00037808,14]
[354612688,1740595911440,-500.0,0.00037808,14]
[354612690,1740595911451,-1276.51,0.00037808,14]
[354612692,1740595911461,-708.24,0.00037808,14]
[354612694,1740595911471,-500.0,0.00037808,14]
[354612696,1740595911480,-2733.74,0.00037808,14]
[354612698,1740595911490,-2252.01,0.00037808,14]
[354612700,1740595911500,-891.14,0.00037808,14]
[354612702,1740595911510,-1022.27,0.00037808,14]
[354612704,1740595911520,-500.0,0.00037808,14]
[354612706,1740595911530,-642.98,0.00037808,14]
[354612708,1740595911540,-552.36,0.00037808,14]
[354612710,1740595911549,-630.12,0.00037808,14]
[354612712,1740595911559,-500.0,0.00037808,14]
[354612714,1740595911569,-1991.31,0.00037808,14]
[354612716,1740595911579,-1294.07,0.00037808,14]
[354612718,1740595911589,-1853.21,0.00037808,14]
[354612720,1740595911598,-630.96,0.00037808,14]
[354612722,1740595911609,-1573.28,0.00037808,14]
[354612724,1740595911621,-2426.57,0.00037808,14]
[354612726,1740595911631,-2490.78,0.00037808,14]
[354612728,1740595911641,-1150.32,0.00037808,14]
[354612730,1740595911651,-715.02,0.00037808,14]
[354612732,1740595911660,-3484.94,0.00037808,14]